fUST/lending_fUST_20250820
["ID","MTS","AMOUNT","RATE_DAILY","PERIOD"]
[380314625,1755658246242,-293.9452039,0.00024575,2]
[380314626,1755658246252,-160.8718701,0.00024575,2]
[380314627,1755658246262,-823.75984473,0.00024584,2]
[380314628,1755658246272,-580.8939941,0.00024603,2]
[380314629,1755658246282,-155.37,0.00024624,7]
[380314630,1755658246292,-380.0,0.00024658,2]
[380314631,1755658246302,-546.0,0.00024658,2]
[380314632,1755658246312,-500.0,0.00024658,2]
[380314633,1755658246321,-40.50033153,0.00024658,2]
[380314666,1755658260083,174.23573,0.00013699,2]
[380314667,1755658807033,160.0,0.000187,2]
[380314668,1755658808124,160.0,0.000187,2]
[380314669,1755658816203,160.0,0.000187,2]
[380314672,1755659249114,-335.90367873,0.00018926,2]
[380314673,1755659294738,173.576312,0.00013699,2]
[380314674,1755659348148,-363.71792339,0.00018826,2]
[380314680,1755659432600,-1550.62278627,0.00018826,2]
[380314681,1755659432654,-5576.959179,0.00018826,2]
[380314682,1755659432665,-825.58847698,0.000189,2]
[380314683,1755659432674,-1200.0,0.00018925,2]
[380314684,1755659432684,-1207.46559621,0.00018926,2]
[380314685,1755659432693,-300.0,0.00018998,2]
[380314686,1755659432703,-300.0,0.00018998,2]
[380314687,1755659432716,-300.0,0.00018998,2]
[380314688,1755659432725,-300.0,0.00018998,2]
[380314689,1755659432734,-300.0,0.00018998,2]
[380314690,1755659432743,-1200.0,0.00018999,2]
[380314691,1755659432752,-3003.79422041,0.00019,2]
[380314831,1755659438471,-3349.04948075,0.00019,2]
[380314832,1755659438483,-3647.15629884,0.00019,2]
[380314833,1755659438493,-480.0,0.00019178,2]
[380314834,1755659438502,-323.60926867,0.00019452,2]
[380314835,1755659438511,-173.576312,0.00020187,2]
[380314836,1755659438520,-2773.5371296,0.00020203,2]
[380314837,1755659438529,-420.0,0.00020708,2]
[380314838,1755659438539,-303.0,0.00020708,2]
[380314839,1755659438548,-300.0,0.00020708,2]
[380314840,1755659438556,-300.0,0.00020708,2]
[380314841,1755659438565,-1680.0,0.0002073,2]
[380314842,1755659438574,-3000.0,0.00021,2]
[380314843,1755659438585,-10000.0,0.00021,2]
[380314844,1755659438596,-3000.0,0.0002101,2]
[380314845,1755659438605,-3000.0,0.0002102,2]
[380314846,1755659438614,-3000.0,0.0002103,2]
[380314847,1755659438623,-3000.0,0.0002104,2]
[380314848,1755659438634,-3000.0,0.0002105,2]
[380314850,1755659438643,-3000.0,0.0002106,2]
[380314852,1755659438652,-3000.0,0.0002107,2]
[380314853,1755659438663,-3000.0,0.0002108,2]
[380314854,1755659438672,-3000.0,0.0002109,2]
[380314855,1755659438682,-1071.9346813,0.000211,2]
[380314856,1755659438697,-1446.16,0.000211,2]
[380314866,1755659440483,-481.9053187,0.000211,2]
[380314867,1755659440493,-3766.37246693,0.0002111,2]
[380314869,1755659440505,-136.78810107,0.0002111,2]
[380314871,1755659440514,-417.15472785,0.00021628,2]
[380314873,1755659440523,-275.33734364,0.00022428,2]
[380314881,1755659440597,-861.33060943,0.00022428,2]
[380314883,1755659440607,-235.93259844,0.00022572,2]
[380314973,1755659443547,-351.06740156,0.00022572,2]
[380314974,1755659443557,-498.73439269,0.00022707,2]
[380314992,1755659446661,-106.26560731,0.00022707,2]
[380314993,1755659446671,-160.0,0.00023,4]
[380314994,1755659446680,-160.0,0.00023,4]
[380314995,1755659446689,-160.0,0.00023,3]
[380314996,1755659446699,-161.43899706,0.00023,3]
[380314997,1755659446708,-351.9819023,0.00023205,2]
[380314998,1755659446718,-215.40549333,0.00023738,2]
[380314999,1755659446766,-304.99482152,0.00023738,2]
[380315000,1755659446778,-579.59968515,0.00023738,2]
[380315001,1755659446787,-38.17329033,0.00023753,2]
[380315002,1755659446799,-114.82670967,0.00023753,2]
[380315003,1755659446809,-160.8718701,0.00023753,2]
[380315004,1755659446818,-153.0,0.00023753,2]
[380315005,1755659446827,-81.55216773,0.00023878,2]
[380315015,1755660267664,164.26532,0.00013699,2]
[380315016,1755660337300,500.0,0.00018609,2]
[380315017,1755660341918,500.0,0.00018609,2]
[380315018,1755660356626,500.0,0.00018609,2]
[380315019,1755660361185,500.0,0.00018609,2]
[380315020,1755660365905,500.0,0.00018609,2]
[380315021,1755660444382,-590.59186414,0.000189,2]
[380315022,1755660444401,-550.39231799,0.0001901,2]
[380315023,1755660444425,-500.0,0.0001908,2]
[380315024,1755660444446,-500.0,0.00020085,2]
[380315025,1755660444466,-164.26532,0.00020187,2]
[380315026,1755660444488,-371.14073815,0.00021039,2]
[380315027,1755660444511,-500.0,0.00021142,2]
[380315028,1755660444532,-1200.0,0.00022178,2]
[380315029,1755660444553,-300.0,0.00022178,2]
[380315030,1755660444573,-477.76639832,0.00022179,2]
[380315031,1755660444594,-1911.06559327,0.00022179,2]
[380315032,1755660444615,-4295.59768726,0.00022179,2]
[380315033,1755660444634,-527.7386925,0.00022179,2]
[380315034,1755660444653,-2110.95476998,0.00022179,2]
[380315035,1755660444672,-242.69320564,0.00022255,2]
[380315036,1755660459226,303.52591155,0.00028,120]
[380315176,1755660637777,-366.92821199,0.00020079,2]
[380315177,1755660637786,-151.3846268,0.0002221,2]
[380315178,1755660637795,-257.30679436,0.00022255,2]
[380315179,1755660637805,-174.441373,0.00022356,2]
[380315180,1755660637814,-432.2343682,0.00023233,2]
[380315181,1755660637823,-432.2343682,0.00023241,2]
[380315182,1755660637831,-160.8718701,0.00023278,2]
[380315183,1755660637840,-4565.45277677,0.00023346,2]
[380315184,1755660637849,-500.0,0.00023367,2]
[380315185,1755660637858,-160.8718701,0.00023378,2]
[380315186,1755660637867,-432.2343682,0.000234,2]
[380315187,1755660637876,-302.0,0.00023579,2]
[380315188,1755660637885,-300.0,0.00023599,2]
[380315189,1755660637894,-207.0,0.000236,2]
[380315190,1755660637903,-160.8718701,0.000236,2]
[380315191,1755660637912,-293.9452039,0.000236,2]
[380315192,1755660637921,-432.2343682,0.000236,2]
[380315193,1755660637930,-153.0,0.000236,2]
[380315194,1755660637939,-160.8718701,0.000236,2]
[380315195,1755660637947,-212.3930362,0.000236,2]
[380315196,1755660637956,-438.8676342,0.000236,2]
[380315197,1755660637965,-62281.86930979,0.000236,2]
[380315198,1755660637974,-321.5126354,0.000236,2]
[380315199,1755660637983,-160.8718701,0.000236,2]
[380315200,1755660637993,-160.8718701,0.000236,2]
[380315201,1755660638004,-153.0,0.00023604,2]
[380315202,1755660638014,-153.0,0.000237,2]
[380315203,1755660638024,-432.2343682,0.000237,2]
[380315204,1755660638033,-1000.0,0.00023738,2]
[380315205,1755660638042,-581.0009137,0.00023753,2]
[380315206,1755660638051,-581.0009137,0.00023753,2]
[380315207,1755660638060,-581.0009137,0.00023753,2]
[380315208,1755660638071,-581.0009137,0.00023753,2]
[380315209,1755660638081,-153.0,0.00023753,2]
[380315210,1755660638090,-153.0,0.00023753,2]
[380315211,1755660638099,-160.8718701,0.00023753,2]
[380315212,1755660638108,-153.0,0.00023753,2]
[380315213,1755660638117,-160.8718701,0.00023753,2]
[380315214,1755660638126,-160.8718701,0.00023753,2]
[380315215,1755660638135,-153.0,0.00023753,2]
[380315216,1755660638144,-153.0,0.00023753,2]
[380315217,1755660638153,-307.4695268,0.00023753,2]
[380315218,1755660638162,-153.0,0.00023781,2]
[380315219,1755660638171,-293.9452039,0.00023781,2]
[380315220,1755660638180,-160.8718701,0.00023781,2]
[380315221,1755660638189,-293.9452039,0.00023781,2]
[380315222,1755660638198,-160.8718701,0.00023781,2]
[380315223,1755660638207,-153.0,0.00023781,2]
[380315224,1755660638217,-293.9452039,0.00023781,2]
[380315225,1755660638229,-160.8718701,0.00023781,2]
[380315226,1755660638238,-293.9452039,0.00023781,2]
[380315227,1755660638247,-160.8718701,0.00023781,2]
[380315228,1755660638257,-581.0009137,0.00023781,2]
[380315229,1755660638266,-293.9452039,0.00023781,2]
[380315230,1755660638275,-293.9452039,0.00023781,2]
[380315231,1755660638284,-581.0009137,0.00023781,2]
[380315232,1755660638293,-293.9452039,0.00023781,2]
[380315233,1755660638303,-581.0009137,0.00023781,2]
[380315234,1755660638312,-293.9452039,0.00023781,2]
[380315235,1755660638321,-580.0386373,0.00023781,2]
[380315236,1755660638330,-293.9452039,0.00023781,2]
[380315237,1755660638339,-293.9452039,0.00023781,2]
[380315238,1755660638348,-293.9452039,0.00023781,2]
[380315239,1755660638357,-293.9452039,0.00023781,2]
[380315240,1755660638366,-293.9452039,0.00023781,2]
[380315241,1755660638375,-153.0,0.000238,2]
[380315242,1755660638384,-153.0,0.000238,2]
[380315243,1755660638393,-373.9592784,0.000238,2]
[380315244,1755660638402,-587.7377564,0.000238,2]
[380315245,1755660638411,-153.0,0.000238,2]
[380315246,1755660638420,-432.2343682,0.000238,2]
[380315247,1755660638428,-380.3733635,0.000238,2]
[380315248,1755660638437,-160.8718701,0.000238,2]
[380315249,1755660638446,-153.0,0.000238,2]
[380315250,1755660638455,-153.0,0.000238,2]
[380315251,1755660638464,-432.2343682,0.000238,2]
[380315252,1755660638473,-421.4844175,0.000238,2]
[380315253,1755660638482,-581.0009137,0.000238,2]
[380315254,1755660638490,-293.9452039,0.000238,2]
[380315255,1755660638499,-293.9452039,0.000238,2]
[380315256,1755660638508,-320.0,0.000238,6]
[380315257,1755660638517,-211.0,0.00023816,2]
[380315258,1755660638526,-1647.68,0.00023818,10]
[380315259,1755660638535,-2554.6,0.00023818,10]
[380315260,1755660638544,-3982.6064131,0.00023828,2]
[380315261,1755660638553,-370000.0,0.00023828,2]
[380315262,1755660638562,-211.0,0.00023859,2]
[380315263,1755660638571,-211.0,0.0002386,2]
[380315264,1755660638580,-181.0,0.00023862,2]
[380315265,1755660638589,-160.0,0.00023889,2]
[380315266,1755660638599,-8842.51,0.000239,4]
[380315267,1755660638608,-587.78,0.000239,4]
[380315268,1755660638617,-160.8718701,0.000239,2]
[380315269,1755660638626,-153.0,0.000239,2]
[380315270,1755660638635,-160.8718701,0.000239,2]
[380315271,1755660638645,-467.8121598,0.000239,2]
[380315272,1755660638654,-160.8718701,0.000239,2]
[380315273,1755660638664,-293.9452039,0.000239,2]
[380315274,1755660638673,-160.8718701,0.000239,2]
[380315275,1755660638683,-293.9452039,0.000239,2]
[380315277,1755660638692,-162.6918208,0.000239,2]
[380315279,1755660638702,-293.9452039,0.000239,2]
[380315281,1755660638711,-153.0,0.000239,2]
[380315283,1755660638721,-293.9452039,0.000239,2]
[380315285,1755660638730,-153.0,0.000239,2]
[380315287,1755660638739,-306.0,0.000239,2]
[380315289,1755660638749,-432.2343682,0.000239,2]
[380315291,1755660638758,-153.0,0.000239,2]
[380315292,1755660638767,-45323.49211901,0.00023928,2]
[380315293,1755660638778,-207.0,0.0002393,2]
[380315294,1755660638787,-155.843531,0.0002393,10]
[380315295,1755660638796,-211.0,0.0002396,2]
[380315296,1755660638806,-456.19665001,0.00024,2]
[380315297,1755660638815,-157.34,0.00024,14]
[380315298,1755660638824,-349.62862785,0.00024,7]
[380315299,1755660638833,-949.30542745,0.00024036,2]
[380315301,1755660638843,-2230.0,0.00024044,2]
[380315302,1755660638852,-1000.0,0.0002408,2]
[380315304,1755660638861,-1000.0,0.0002408,2]
[380315306,1755660638870,-1000.0,0.0002408,2]
[380315308,1755660638879,-151.0,0.0002408,2]
[380315310,1755660638889,-151.0,0.0002408,2]
[380315311,1755660638898,-151.0,0.0002408,2]
[380315312,1755660638907,-1000.0,0.0002408,2]
[380315313,1755660638917,-151.0,0.0002408,2]
[380315315,1755660638926,-1000.0,0.0002408,2]
[380315316,1755660638935,-300.0,0.0002408,2]
[380315317,1755660638944,-151.0,0.0002408,2]
[380315319,1755660638952,-1000.0,0.0002408,2]
[380315320,1755660638961,-2183.31810187,0.0002408,2]
[380315322,1755660638970,-300.0,0.0002408,2]
[380315324,1755660638980,-151.0,0.0002408,2]
[380315326,1755660638989,-1000.0,0.0002408,2]
[380315327,1755660639001,-300.0,0.0002408,2]
[380315329,1755660639010,-151.0,0.0002408,2]
[380315330,1755660639019,-1000.0,0.0002408,2]
[380315331,1755660639030,-300.0,0.0002408,2]
[380315333,1755660639041,-1000.0,0.0002408,2]
[380315335,1755660639049,-151.0,0.0002408,2]
[380315337,1755660639059,-320.74982047,0.0002408,2]
[380315339,1755660639073,-151.0,0.0002408,2]
[380315340,1755660639082,-1000.0,0.0002408,2]
[380315341,1755660639091,-151.0,0.0002408,2]
[380315342,1755660639100,-1000.0,0.0002408,2]
[380315343,1755660639110,-151.0,0.0002408,2]
[380315344,1755660639119,-151.0,0.0002408,2]
[380315345,1755660639129,-1000.0,0.0002408,2]
[380315346,1755660639138,-151.0,0.0002408,2]
[380315347,1755660639147,-151.0,0.0002408,2]
[380315348,1755660639156,-151.0,0.0002408,2]
[380315349,1755660639166,-151.0,0.0002408,2]
[380315350,1755660639175,-151.0,0.0002408,2]
[380315351,1755660639185,-1000.0,0.0002408,2]
[380315352,1755660639194,-151.0,0.0002408,2]
[380315353,1755660639203,-151.0,0.0002408,2]
[380315354,1755660639212,-151.0,0.0002408,2]
[380315355,1755660639221,-151.0,0.0002408,2]
[380315356,1755660639231,-151.0,0.0002408,2]
[380315357,1755660639240,-151.0,0.0002408,2]
[380315358,1755660639249,-151.0,0.0002408,2]
[380315359,1755660639258,-151.0,0.0002408,2]
[380315360,1755660639267,-151.0,0.0002408,2]
[380315361,1755660639278,-288.53915465,0.0002408,2]
[380315362,1755660639288,-151.0,0.0002408,2]
[380315363,1755660639297,-151.0,0.0002408,2]
[380315364,1755660639307,-151.0,0.0002408,2]
[380315365,1755660639316,-17842.522448,0.0002408,2]
[380315366,1755660639325,-151.0,0.0002408,2]
[380315367,1755660639334,-151.0,0.0002408,2]
[380315368,1755660639343,-151.0,0.0002408,2]
[380315369,1755660639352,-151.0,0.0002408,2]
[380315370,1755660639361,-151.0,0.0002408,2]
[380315371,1755660639370,-151.0,0.0002408,2]
[380315372,1755660639379,-151.0,0.0002408,2]
[380315373,1755660639389,-151.0,0.0002408,2]
[380315374,1755660639398,-151.0,0.0002408,2]
[380315375,1755660639407,-151.0,0.0002408,2]
[380315376,1755660639416,-151.0,0.0002408,2]
[380315377,1755660639426,-151.0,0.0002408,2]
[380315378,1755660639435,-151.0,0.0002408,2]
[380315379,1755660639444,-198.99276897,0.0002408,2]
[380315380,1755660639453,-268.38095863,0.0002408,2]
[380315381,1755660639463,-151.0,0.0002408,2]
[380315382,1755660639472,-151.0,0.0002408,2]
[380315383,1755660639481,-151.0,0.0002408,2]
[380315384,1755660639491,-151.0,0.0002408,2]
[380315385,1755660639501,-151.0,0.0002408,2]
[380315386,1755660639511,-151.0,0.0002408,2]
[380315387,1755660639520,-151.0,0.0002408,2]
[380315388,1755660639531,-151.0,0.0002408,2]
[380315389,1755660639540,-151.0,0.0002408,2]
[380315390,1755660639549,-151.0,0.0002408,2]
[380315391,1755660639558,-151.0,0.0002408,2]
[380315392,1755660639567,-151.0,0.0002408,2]
[380315393,1755660639576,-151.0,0.0002408,2]
[380315394,1755660639585,-151.0,0.0002408,2]
[380315395,1755660639595,-151.0,0.0002408,2]
[380315396,1755660639603,-151.0,0.0002408,2]
[380315397,1755660639613,-496.0,0.00024096,2]
[380315398,1755660639622,-211.0,0.000241,2]
[380315399,1755660639631,-2264.10087164,0.00024135,2]
[380315400,1755660639641,-2298.70916242,0.0002419,2]
[380315401,1755660639650,-207.0,0.0002426,2]
[380315402,1755660639659,-159.0,0.000243,10]
[380315403,1755660639669,-155.37,0.00024309,7]
[380315404,1755660639678,-211.0,0.00024446,2]
[380315405,1755660639687,-660.27645785,0.000245,2]
[380315406,1755660639696,-155.37,0.0002451,7]
[380315407,1755660639705,-211.0,0.00024514,2]
[380315408,1755660639715,-181.0,0.00024518,2]
[380315409,1755660639725,-509.96383387,0.00024518,2]
[380315410,1755660639734,-1179.0,0.00024523,2]
[380315411,1755660639744,-500.0,0.00024536,2]
[380315412,1755660639753,-155.843531,0.00024549,10]
[380315413,1755660639763,-1000.0,0.00024564,2]
[380315414,1755660639772,-1014.08878042,0.00024564,2]
[380315415,1755660639782,-407.13825341,0.00024575,2]
[380315416,1755660639792,-1626.92446063,0.00024575,2]
[380315417,1755660639801,-306.0,0.00024575,2]
[380315418,1755660639810,-293.9452039,0.00024575,2]
[380315419,1755660639819,-153.0,0.00024575,2]
[380315420,1755660639828,-1000.0,0.00024585,5]
[380315421,1755660639837,-207.0,0.0002459,2]
[380315422,1755660639847,-293.9452039,0.00024603,2]
[380315423,1755660639856,-293.9452039,0.00024603,2]
[380315424,1755660639865,-293.9452039,0.00024603,2]
[380315425,1755660639873,-293.9452039,0.00024603,2]
[380315426,1755660639883,-293.9452039,0.00024603,2]
[380315427,1755660639891,-151.35466111,0.00024628,2]
[380315428,1755660639900,-1179.0,0.00024642,2]
[380315429,1755660639909,-160.0,0.00024656,2]
[380315430,1755660639919,-844.05985274,0.00024656,2]
[380315431,1755660639928,-528.77847288,0.00024656,2]
[380315432,1755660639938,-232.24568399,0.00024656,2]
[380315433,1755660639947,-215.82729805,0.00024656,2]
[380315434,1755660639956,-375.94359665,0.00024656,2]
[380315435,1755660639965,-163.37511434,0.00024658,2]
[380315436,1755660639974,-455.0,0.00024658,2]
[380315437,1755660639983,-200.70008527,0.00024658,2]
[380315438,1755660639993,-184.07312114,0.00024658,2]
[380315439,1755660640006,-153.00135488,0.00024658,2]
[380315440,1755660640015,-500.0,0.00024658,2]
[380315441,1755660640024,-160.0,0.0002466,2]
[380315442,1755660640034,-160.0,0.00024671,2]
[380315443,1755660640046,-181.0,0.00024718,2]
[380315444,1755660640056,-155.38394297,0.00024724,7]
[380315445,1755660640066,-179.0,0.00024746,2]
[380315446,1755660640078,-165.21138705,0.00024773,2]
[380315447,1755660640088,-1762.0,0.00024779,3]
[380315448,1755660640100,-1762.0,0.00024779,3]
[380315449,1755660640109,-1762.0,0.00024779,3]
[380315450,1755660640119,-1762.0,0.00024779,3]
[380315451,1755660640130,-1762.0,0.00024779,3]
[380315452,1755660640140,-1762.0,0.00024779,3]
[380315453,1755660640149,-1762.0,0.00024779,3]
[380315454,1755660640158,-161.0,0.00024779,3]
[380315455,1755660640167,-160.23812421,0.00024779,3]
[380315456,1755660640175,-1762.0,0.00024779,3]
[380315457,1755660640184,-1762.0,0.00024779,3]
[380315459,1755660640307,-333.03578267,0.00024779,3]
[380315460,1755660640316,-12673.43806534,0.00024779,3]
[380315461,1755660640325,-160.0,0.00024779,3]
[380315463,1755660640334,-160.0,0.00024779,3]
[380315464,1755660640343,-232.24568399,0.00024779,3]
[380315465,1755660640352,-844.05985274,0.00024779,3]
[380315466,1755660640361,-365.83826372,0.00024779,3]
[380315467,1755660640370,-528.77847288,0.00024779,3]
[380315469,1755660640380,-215.82729805,0.00024779,3]
[380315470,1755660640388,-1448.30894844,0.00024787,9]
[380315471,1755660640398,-4037.15262475,0.00024799,2]
[380315472,1755660640408,-1833.13835188,0.00024799,2]
[380315473,1755660640417,-1181.48,0.000248,10]
[380315474,1755660640426,-1437.24,0.000248,7]
[380315475,1755660640436,-5150.56,0.000248,7]
[380315476,1755660640445,-16840.48,0.000248,7]
[380315477,1755660640454,-151.0,0.000248,8]
[380315478,1755660640463,-152.141958,0.000248,7]
[380315479,1755660640473,-160.0,0.000248,7]
[380315480,1755660640482,-24061.71304682,0.000248,3]
[380315481,1755660640492,-160.0,0.000248,7]
[380315483,1755660640501,-232.24568399,0.000248,7]
[380315484,1755660640511,-232.24568399,0.000248,3]
[380315485,1755660640520,-844.05985274,0.000248,7]
[380315486,1755660640530,-7882.03001415,0.000248,2]
[380315487,1755660640540,-151.0,0.000248,7]
[380315488,1755660640550,-151.0,0.000248,7]
[380315489,1755660640560,-151.0,0.000248,7]
[380315490,1755660640569,-151.0,0.000248,7]
[380315491,1755660640579,-528.77847288,0.000248,7]
[380315492,1755660640588,-151.0,0.000248,7]
[380315493,1755660640598,-255.873189,0.000248,7]
[380315494,1755660640607,-255.873189,0.000248,7]
[380315495,1755660640616,-255.873189,0.000248,7]
[380315496,1755660640625,-255.873189,0.000248,7]
[380315497,1755660640635,-215.82729805,0.000248,7]
[380315498,1755660640644,-2627.34333805,0.00024824,2]
[380315499,1755660640653,-1000.0,0.00024834,2]
[380315500,1755660640662,-600.0,0.00024864,2]
[380315501,1755660640671,-500.0,0.00024873,2]
[380315502,1755660640681,-160.0,0.00024886,4]
[380315503,1755660640690,-2627.34333805,0.00024889,2]
[380315504,1755660640699,-151.0,0.00024899,7]
[380315505,1755660640708,-151.379794,0.00024899,7]
[380315506,1755660640718,-151.0,0.00024899,7]
[380315507,1755660640727,-151.0,0.00024899,7]
[380315508,1755660640736,-151.0,0.00024899,7]
[380315509,1755660640745,-151.0,0.00024899,7]
[380315510,1755660640754,-152.778142,0.00024899,7]
[380315511,1755660640763,-151.0,0.00024899,7]
[380315512,1755660640773,-151.0,0.00024899,7]
[380315513,1755660640784,-151.0,0.00024899,7]
[380315514,1755660640793,-151.0,0.00024899,7]
[380315515,1755660640802,-151.0,0.00024899,7]
[380315516,1755660640812,-177.683862,0.00024899,7]
[380315517,1755660640821,-175.15558,0.00024899,7]
[380315518,1755660640830,-151.0,0.00024899,7]
[380315519,1755660640840,-175.15558,0.00024899,7]
[380315520,1755660640849,-151.0,0.00024899,7]
[380315521,1755660640858,-175.15558,0.00024899,7]
[380315522,1755660640869,-175.15558,0.00024899,7]
[380315523,1755660640878,-151.0,0.00024899,7]
[380315524,1755660640887,-151.0,0.00024899,7]
[380315525,1755660640896,-151.0,0.00024899,7]
[380315526,1755660640906,-151.0,0.00024899,7]
[380315527,1755660640915,-151.0,0.00024899,7]
[380315528,1755660640925,-151.0,0.00024899,7]
[380315529,1755660640933,-182.643296,0.00024899,7]
[380315530,1755660640942,-151.0,0.00024899,7]
[380315531,1755660640951,-153.300585,0.00024899,7]
[380315532,1755660640961,-151.0,0.00024899,7]
[380315533,1755660640970,-151.0,0.00024899,7]
[380315534,1755660640979,-151.0,0.00024899,7]
[380315535,1755660640988,-151.0,0.00024899,7]
[380315536,1755660641002,-151.0,0.00024899,7]
[380315537,1755660641012,-151.0,0.00024899,7]
[380315538,1755660641021,-151.0,0.00024899,7]
[380315539,1755660641031,-152.754106,0.00024899,7]
[380315540,1755660641041,-151.0,0.00024899,7]
[380315541,1755660641050,-151.0,0.00024899,7]
[380315542,1755660641059,-151.0,0.00024899,7]
[380315543,1755660641069,-500.0,0.00024899,2]
[380315544,1755660641079,-1916.65507677,0.00024899,2]
[380315545,1755660641088,-1916.65507677,0.00024899,2]
[380315546,1755660641097,-440.3966399,0.00024899,2]
[380315547,1755660641106,-1916.65507677,0.00024899,2]
[380315548,1755660641115,-1916.65507677,0.00024899,2]
[380315549,1755660641124,-1916.65507677,0.00024899,2]
[380315550,1755660641136,-1916.65507677,0.00024899,2]
[380315551,1755660641145,-1916.65507677,0.00024899,2]
[380315552,1755660641155,-1916.65507677,0.00024899,2]
[380315553,1755660641166,-1916.65507677,0.00024899,2]
[380315554,1755660641177,-1916.65507677,0.00024899,2]
[380315555,1755660641187,-1916.65507677,0.00024899,2]
[380315556,1755660641196,-1916.65507677,0.00024899,2]
[380315557,1755660641206,-1916.65507677,0.00024899,2]
[380315558,1755660641215,-1916.65507677,0.00024899,2]
[380315559,1755660641225,-1916.65507677,0.00024899,2]
[380315560,1755660641234,-1916.65507677,0.00024899,2]
[380315561,1755660641244,-1916.65507677,0.00024899,2]
[380315562,1755660641254,-1916.65507677,0.00024899,2]
[380315563,1755660641263,-1916.65507677,0.00024899,2]
[380315564,1755660641273,-1916.65507677,0.00024899,2]
[380315565,1755660641283,-12687.94051737,0.000249,7]
[380315566,1755660641293,-151.0,0.000249,10]
[380315567,1755660641302,-151.0,0.000249,7]
[380315568,1755660641313,-151.0,0.000249,7]
[380315569,1755660641322,-151.0,0.000249,7]
[380315570,1755660641332,-151.0,0.000249,7]
[380315571,1755660641341,-151.0,0.000249,7]
[380315572,1755660641351,-179.843549,0.000249,7]
[380315573,1755660641361,-151.0,0.000249,7]
[380315574,1755660641370,-151.0,0.000249,7]
[380315575,1755660641380,-151.0,0.000249,7]
[380315576,1755660641390,-151.0,0.000249,7]
[380315577,1755660641400,-151.0,0.000249,7]
[380315578,1755660641409,-151.0,0.000249,7]
[380315579,1755660641419,-151.0,0.000249,7]
[380315580,1755660641429,-151.0,0.000249,7]
[380315581,1755660641438,-151.0,0.000249,7]
[380315582,1755660641447,-151.0,0.000249,7]
[380315583,1755660641456,-151.0,0.000249,7]
[380315584,1755660641464,-151.0,0.000249,7]
[380315585,1755660641473,-175.15558,0.000249,7]
[380315586,1755660641482,-151.0,0.000249,7]
[380315587,1755660641491,-175.15558,0.000249,7]
[380315588,1755660641500,-151.0,0.000249,7]
[380315589,1755660641509,-175.15558,0.000249,7]
[380315590,1755660641518,-175.15558,0.000249,7]
[380315591,1755660641528,-160.0,0.000249,7]
[380315592,1755660641537,-151.0,0.000249,7]
[380315593,1755660641546,-151.0,0.000249,7]
[380315594,1755660641556,-151.0,0.000249,7]
[380315595,1755660641565,-214.209078,0.000249,7]
[380315596,1755660641574,-151.0,0.000249,7]
[380315597,1755660641584,-151.0,0.000249,7]
[380315598,1755660641593,-232.24568399,0.000249,7]
[380315599,1755660641602,-151.0,0.000249,7]
[380315600,1755660641611,-151.0,0.000249,7]
[380315601,1755660641620,-151.0,0.000249,7]
[380315602,1755660641629,-155.475497,0.000249,7]
[380315603,1755660641639,-153.344798,0.000249,7]
[380315604,1755660641649,-151.0,0.000249,7]
[380315605,1755660641658,-151.0,0.000249,7]